fUST/lending_fUST_20250827
["ID","MTS","AMOUNT","RATE_DAILY","PERIOD"]
[381604052,1756295449544,-203.166597,0.00021973,7]
[381604054,1756295449553,-650.72415,0.00021973,7]
[381604056,1756295449563,-203.166597,0.00021973,7]
[381604058,1756295449572,-650.72415,0.00021973,7]
[381604059,1756295449581,-203.166597,0.00021973,7]
[381604061,1756295449590,-203.166597,0.00021973,7]
[381604063,1756295449600,-151.0,0.00021973,7]
[381604065,1756295449610,-151.0,0.00021973,7]
[381604067,1756295449621,-151.0,0.0002199,7]
[381604069,1756295449630,-529.56067766,0.0002199,7]
[381604071,1756295449639,-425.44119842,0.0002199,7]
[381604073,1756295449649,-151.0,0.0002199,7]
[381604075,1756295449658,-151.0,0.0002199,7]
[381604077,1756295449668,-151.0,0.0002199,7]
[381604078,1756295449677,-151.0,0.0002199,7]
[381604079,1756295449686,-151.0,0.0002199,7]
[381604080,1756295449698,-151.0,0.0002199,7]
[381604081,1756295449707,-151.0,0.0002199,7]
[381604082,1756295449716,-151.0,0.0002199,7]
[381604083,1756295449726,-151.0,0.0002199,7]
[381604084,1756295449735,-151.0,0.0002199,7]
[381604085,1756295449745,-237.011804,0.0002199,7]
[381604086,1756295449754,-237.011804,0.0002199,7]
[381604087,1756295449763,-237.011804,0.0002199,7]
[381604089,1756295449772,-237.011804,0.0002199,7]
[381604091,1756295449782,-151.0,0.0002199,7]
[381604093,1756295449791,-160.0,0.0002199,7]
[381604095,1756295449800,-225.810266,0.0002199,7]
[381604097,1756295449810,-151.0,0.0002199,7]
[381604099,1756295449819,-417.15472785,0.0002199,7]
[381604101,1756295449828,-216.14835892,0.0002199,7]
[381604102,1756295449840,-12707.75045307,0.0002199,7]
[381604104,1756295449850,-12820.26,0.00022,2]
[381604106,1756295449859,-151.0,0.00022,4]
[381604108,1756295449868,-37887.28,0.00022,7]
[381604110,1756295449880,-3102.77,0.00022,7]
[381604112,1756295449890,-151.0,0.00022,3]
[381604114,1756295449900,-151.0,0.00022,7]
[381604116,1756295449909,-151.0,0.00022,7]
[381604118,1756295449919,-151.0,0.00022,7]
[381604120,1756295449930,-151.0,0.00022,7]
[381604122,1756295449940,-151.0,0.00022,7]
[381604124,1756295449949,-151.0,0.00022,7]
[381604126,1756295449958,-199.39766,0.00022,7]
[381604128,1756295449967,-151.0,0.00022,7]
[381604130,1756295449978,-199.39766,0.00022,7]
[381604131,1756295449988,-199.39766,0.00022,7]
[381604134,1756295449999,-199.39766,0.00022,7]
[381604136,1756295450009,-151.0,0.00022,7]
[381604138,1756295450018,-151.0,0.00022,7]
[381604140,1756295450027,-235.510464,0.00022,7]
[381604142,1756295450037,-151.0,0.00022,7]
[381604144,1756295450046,-152.456172,0.00022,7]
[381604146,1756295450056,-151.0,0.00022,7]
[381604148,1756295450066,-151.0,0.00022,7]
[381604150,1756295450075,-151.0,0.00022,7]
[381604152,1756295450085,-151.0,0.00022,7]
[381604154,1756295450098,-151.0,0.00022,7]
[381604156,1756295450108,-151.0,0.00022,7]
[381604158,1756295450117,-151.0,0.00022,7]
[381604160,1756295450126,-151.0,0.00022,7]
[381604162,1756295450137,-165.491302,0.00022,7]
[381604164,1756295450146,-151.0,0.00022,7]
[381604166,1756295450157,-529.56067766,0.00022,7]
[381604168,1756295450166,-151.0,0.00022,7]
[381604170,1756295450175,-151.0,0.00022,7]
[381604172,1756295450185,-169.0,0.00022,2]
[381604174,1756295450195,-151.0,0.00022,7]
[381604176,1756295450204,-151.0,0.00022,7]
[381604178,1756295450214,-160.0,0.00022,7]
[381604180,1756295450224,-417.15472785,0.00022,7]
[381604182,1756295450233,-216.14835892,0.00022,7]
[381604184,1756295450243,-12707.75045307,0.00022,7]
[381604186,1756295450252,-1114.94413386,0.00022006,2]
[381604188,1756295450262,-285.0,0.00022038,2]
[381604190,1756295450271,-1081.0,0.00022046,2]
[381604192,1756295450281,-11569.30661258,0.00022085,2]
[381604194,1756295450291,-1499.0,0.00022087,2]
[381604196,1756295450301,-1081.0,0.00022087,2]
[381604198,1756295450311,-285.0,0.00022113,2]
[381604201,1756295450323,-285.0,0.00022122,2]
[381604203,1756295450334,-285.0,0.00022131,2]
[381604205,1756295450343,-168.0,0.00022145,2]
[381604206,1756295450353,-152.47729355,0.0002217,2]
[381604208,1756295450363,-151.0,0.0002217,2]
[381604211,1756295450372,-151.0,0.0002217,2]
[381604213,1756295450382,-973.0,0.0002217,2]
[381604215,1756295450392,-500.0,0.0002217,2]
[381604217,1756295450401,-151.0,0.0002217,2]
[381604219,1756295450410,-151.0,0.0002217,2]
[381604221,1756295450419,-151.0,0.0002217,2]
[381604223,1756295450429,-153.62565634,0.0002217,2]
[381604225,1756295450438,-151.0,0.0002217,2]
[381604227,1756295450448,-151.0,0.0002217,2]
[381604229,1756295450457,-151.0,0.0002217,2]
[381604231,1756295450467,-151.0,0.0002217,2]
[381604233,1756295450476,-500.0,0.0002217,2]
[381604235,1756295450486,-500.0,0.00022173,2]
[381604237,1756295450495,-595.35038784,0.00022173,2]
[381604239,1756295450505,-500.0,0.00022173,2]
[381604241,1756295450514,-500.0,0.00022173,2]
[381604243,1756295450523,-500.0,0.00022173,2]
[381604245,1756295450533,-500.0,0.00022173,2]
[381604247,1756295450544,-500.0,0.00022173,2]
[381604249,1756295450554,-150.0,0.00022173,2]
[381604251,1756295450563,-500.0,0.00022173,2]
[381604253,1756295450573,-500.0,0.00022173,2]
[381604255,1756295450582,-500.0,0.00022173,2]
[381604257,1756295450591,-501.90256974,0.00022173,2]
[381604259,1756295450601,-300.0,0.00022173,2]
[381604261,1756295450611,-151.0,0.00022173,7]
[381604263,1756295450620,-151.0,0.00022173,7]
[381604265,1756295450629,-153.47438,0.00022173,7]
[381604267,1756295450640,-151.0,0.00022173,7]
[381604269,1756295450651,-151.0,0.00022173,7]
[381604271,1756295450662,-151.0,0.00022173,7]
[381604273,1756295450671,-222584.02617561,0.00022185,2]
[381604275,1756295450680,-151.0,0.00022185,7]
[381604277,1756295450691,-151.0,0.00022185,7]
[381604279,1756295450701,-175.523223,0.00022185,7]
[381604281,1756295450711,-152.159272,0.00022185,7]
[381604283,1756295450720,-151.0,0.00022185,7]
[381604285,1756295450729,-151.0,0.00022185,7]
[381604287,1756295450739,-199.39766,0.00022185,7]
[381604289,1756295450748,-199.39766,0.00022185,7]
[381604291,1756295450758,-199.39766,0.00022185,7]
[381604293,1756295450768,-199.39766,0.00022185,7]
[381604295,1756295450778,-151.0,0.00022185,7]
[381604297,1756295450788,-151.0,0.00022185,7]
[381604299,1756295450798,-151.0,0.00022185,7]
[381604301,1756295450807,-151.0,0.00022185,7]
[381604303,1756295450816,-151.0,0.00022185,7]
[381604305,1756295450826,-151.0,0.00022185,7]
[381604307,1756295450837,-151.0,0.00022185,7]
[381604309,1756295450847,-151.0,0.00022185,7]
[381604311,1756295450856,-151.0,0.00022185,7]
[381604313,1756295450865,-163.48157,0.00022185,7]
[381604315,1756295450875,-151.0,0.00022185,7]
[381604317,1756295450885,-151.0,0.00022185,7]
[381604319,1756295450895,-151.0,0.00022185,7]
[381604321,1756295450904,-151.0,0.00022185,7]
[381604323,1756295450915,-275.83744,0.00022185,7]
[381604325,1756295450925,-151.0,0.00022185,7]
[381604327,1756295450934,-151.0,0.00022185,7]
[381604329,1756295450943,-151.0,0.00022185,7]
[381604331,1756295450953,-243.3326,0.00022185,7]
[381604333,1756295450962,-151.0,0.00022185,7]
[381604335,1756295450972,-251.381762,0.00022185,7]
[381604337,1756295450981,-151.0,0.00022185,7]
[381604339,1756295450990,-151.0,0.00022185,7]
[381604341,1756295451000,-151.0,0.00022185,7]
[381604343,1756295451011,-151.0,0.00022185,7]
[381604345,1756295451020,-237.011804,0.00022185,7]
[381604347,1756295451029,-237.011804,0.00022185,7]
[381604349,1756295451038,-237.011804,0.00022185,7]
[381604351,1756295451047,-237.011804,0.00022185,7]
[381604353,1756295451056,-151.0,0.00022185,7]
[381604355,1756295451066,-160.0,0.00022185,7]
[381604357,1756295451075,-291.714531,0.00022185,7]
[381604359,1756295451084,-291.714531,0.00022185,7]
[381604361,1756295451094,-291.714531,0.00022185,7]
[381604363,1756295451103,-699.539096,0.00022185,7]
[381604365,1756295451112,-156.36125,0.00022185,7]
[381604367,1756295451122,-291.714531,0.00022185,7]
[381604369,1756295451131,-699.539096,0.00022185,7]
[381604371,1756295451140,-204.921329,0.00022185,7]
[381604373,1756295451149,-699.539096,0.00022185,7]
[381604375,1756295451160,-204.921329,0.00022185,7]
[381604377,1756295451169,-699.539096,0.00022185,7]
[381604379,1756295451178,-204.921329,0.00022185,7]
[381604381,1756295451187,-204.921329,0.00022185,7]
[381604383,1756295451197,-175.926798,0.00022185,7]
[381604385,1756295451206,-175.926798,0.00022185,7]
[381604387,1756295451215,-175.926798,0.00022185,7]
[381604389,1756295451224,-151.0,0.00022185,7]
[381604391,1756295451233,-175.926798,0.00022185,7]
[381604393,1756295451242,-417.15472785,0.00022185,7]
[381604395,1756295451251,-650.72415,0.00022185,7]
[381604397,1756295451261,-650.72415,0.00022185,7]
[381604399,1756295451270,-203.166597,0.00022185,7]
[381604401,1756295451279,-650.72415,0.00022185,7]
[381604403,1756295451288,-203.166597,0.00022185,7]
[381604405,1756295451297,-650.72415,0.00022185,7]
[381604407,1756295451307,-203.166597,0.00022185,7]
[381604408,1756295451316,-203.166597,0.00022185,7]
[381604411,1756295451325,-216.14835892,0.00022185,7]
[381604413,1756295451335,-151.0,0.00022185,7]
[381604415,1756295451345,-12707.75045307,0.00022185,7]
[381604417,1756295451354,-151.0,0.00022185,7]
[381604419,1756295451363,-202.037811,0.00022185,7]
[381604421,1756295451372,-151.0,0.00022185,7]
[381604423,1756295451382,-500.0,0.00022188,2]
[381604430,1756295451441,-500.0,0.00022188,2]
[381604432,1756295451450,-151.0,0.00022188,2]
[381604434,1756295451459,-500.0,0.00022188,2]
[381604436,1756295451468,-500.0,0.00022188,2]
[381604438,1756295451477,-151.0,0.00022188,2]
[381604440,1756295451486,-151.0,0.00022188,2]
[381604442,1756295451496,-151.0,0.00022188,2]
[381604444,1756295451504,-728.82,0.00022191,2]
[381604446,1756295451514,-1786.79,0.00022191,2]
[381604448,1756295451523,-480.0,0.00022191,2]
[381604450,1756295451532,-480.0,0.00022191,2]
[381604452,1756295451541,-480.0,0.00022191,2]
[381604454,1756295451550,-480.0,0.00022191,2]
[381604456,1756295451560,-480.0,0.00022191,2]
[381604458,1756295451569,-500.0,0.00022191,2]
[381604460,1756295451578,-480.0,0.00022191,2]
[381604462,1756295451587,-480.0,0.00022191,2]
[381604464,1756295451596,-2132.63,0.00022191,2]
[381604466,1756295451605,-480.0,0.00022191,2]
[381604468,1756295451615,-567.43,0.00022191,2]
[381604470,1756295451624,-480.0,0.00022191,2]
[381604472,1756295451633,-480.0,0.00022191,2]
[381604474,1756295451643,-480.0,0.00022191,2]
[381604476,1756295451654,-480.0,0.00022191,2]
[381604478,1756295451664,-480.0,0.00022191,2]
[381604480,1756295451673,-480.0,0.00022191,2]
[381604482,1756295451682,-480.0,0.00022191,2]
[381604484,1756295451694,-480.0,0.00022191,2]
[381604486,1756295451703,-480.0,0.00022191,2]
[381604488,1756295451712,-480.0,0.00022191,2]
[381604490,1756295451721,-599.6,0.00022191,2]
[381604492,1756295451730,-480.0,0.00022191,2]
[381604494,1756295451739,-480.0,0.00022191,2]
[381604496,1756295451748,-480.0,0.00022191,2]
[381604498,1756295451758,-519.91388181,0.00022191,2]
[381604500,1756295451768,-480.0,0.00022191,2]
[381604502,1756295451777,-480.0,0.00022191,2]
[381604504,1756295451787,-480.0,0.00022191,2]
[381604506,1756295451796,-555.01,0.00022191,2]
[381604507,1756295451805,-480.0,0.00022191,2]
[381604509,1756295451814,-480.0,0.00022191,2]
[381604511,1756295451823,-480.0,0.00022191,2]
[381604513,1756295451835,-482.67385628,0.00022191,2]
[381604515,1756295451844,-480.0,0.00022191,2]
[381604517,1756295451853,-480.0,0.00022191,2]
[381604519,1756295451862,-480.0,0.00022191,2]
[381604521,1756295451871,-480.0,0.00022191,2]
[381604523,1756295451881,-480.0,0.00022191,2]
[381604525,1756295451891,-466.46234252,0.00022191,2]
[381604527,1756295451900,-480.0,0.00022191,2]
[381604529,1756295451910,-480.0,0.00022191,2]
[381604531,1756295451919,-480.0,0.00022191,2]
[381604533,1756295451928,-480.0,0.00022191,2]
[381604535,1756295451937,-480.0,0.00022191,2]
[381604537,1756295451949,-480.0,0.00022191,2]
[381604539,1756295451958,-480.0,0.00022191,2]
[381604541,1756295451968,-480.0,0.00022191,2]
[381604543,1756295451978,-480.0,0.00022191,2]
[381604545,1756295451987,-480.0,0.00022191,2]
[381604547,1756295451996,-480.0,0.00022191,2]
[381604549,1756295452006,-608.26,0.00022191,2]
[381604551,1756295452015,-480.0,0.00022191,2]
[381604553,1756295452024,-480.0,0.00022191,2]
[381604555,1756295452033,-480.0,0.00022191,2]
[381604557,1756295452042,-480.0,0.00022191,2]
[381604559,1756295452052,-480.0,0.00022191,2]
[381604561,1756295452061,-788.63,0.00022191,2]
[381604563,1756295452071,-733.12,0.00022191,2]
[381604565,1756295452080,-480.0,0.00022191,2]
[381604567,1756295452089,-480.0,0.00022191,2]
[381604569,1756295452098,-491.85,0.00022191,2]
[381604571,1756295452108,-523.6,0.00022191,2]
[381604573,1756295452117,-480.0,0.00022191,2]
[381604575,1756295452126,-4246.52,0.00022191,2]
[381604577,1756295452135,-480.0,0.00022191,2]
[381604579,1756295452144,-480.0,0.00022191,2]
[381604581,1756295452154,-598.52,0.00022191,2]
[381604583,1756295452163,-480.0,0.00022191,2]
[381604585,1756295452173,-480.0,0.00022191,2]
[381604587,1756295452182,-480.0,0.00022191,2]
[381604589,1756295452191,-972.86,0.00022191,2]
[381604591,1756295452201,-188.0,0.00022191,7]
[381604593,1756295452210,-480.0,0.00022191,2]
[381604595,1756295452220,-568.62,0.00022191,2]
[381604597,1756295452229,-480.0,0.00022191,2]
[381604599,1756295452238,-480.0,0.00022191,2]
[381604601,1756295452248,-161.75,0.00022191,2]
[381604603,1756295452257,-480.0,0.00022191,2]
[381604605,1756295452266,-482.40434732,0.00022191,2]
[381604607,1756295452275,-480.0,0.00022191,2]
[381604609,1756295452285,-480.0,0.00022191,2]
[381604611,1756295452294,-480.0,0.00022191,2]
[381604613,1756295452303,-480.0,0.00022191,2]
[381604615,1756295452315,-480.0,0.00022191,2]
[381604617,1756295452324,-480.0,0.00022191,2]
[381604619,1756295452333,-480.0,0.00022191,2]
[381604621,1756295452343,-664.44,0.00022191,2]
[381604623,1756295452352,-480.0,0.00022191,2]
[381604625,1756295452361,-480.0,0.00022191,2]
[381604627,1756295452371,-480.0,0.00022191,2]
[381604629,1756295452381,-480.0,0.00022191,2]
[381604631,1756295452390,-480.0,0.00022191,2]
[381604633,1756295452399,-480.0,0.00022191,2]
[381604635,1756295452410,-480.0,0.00022191,2]
[381604637,1756295452419,-480.0,0.00022191,2]
[381604639,1756295452428,-480.0,0.00022191,2]
[381604641,1756295452437,-573.08,0.00022191,2]
[381604643,1756295452446,-480.0,0.00022191,2]
[381604645,1756295452456,-543.52,0.00022191,2]
[381604647,1756295452465,-506.41,0.00022191,2]
[381604649,1756295452475,-556.45,0.00022191,2]
[381604651,1756295452485,-480.0,0.00022191,2]
[381604653,1756295452494,-480.0,0.00022191,2]
[381604655,1756295452504,-480.0,0.00022191,2]
[381604656,1756295452513,-705.68,0.00022191,2]
[381604658,1756295452522,-480.0,0.00022191,2]
[381604660,1756295452533,-743.34,0.00022191,2]
[381604662,1756295452543,-480.0,0.00022191,2]
[381604664,1756295452552,-480.0,0.00022191,2]
[381604666,1756295452561,-480.0,0.00022191,2]
[381604668,1756295452571,-614.77,0.00022191,2]
[381604670,1756295452580,-480.0,0.00022191,2]
[381604672,1756295452590,-480.0,0.00022191,2]
[381604674,1756295452599,-480.0,0.00022191,2]
[381604676,1756295452609,-480.0,0.00022191,2]
[381604678,1756295452618,-480.0,0.00022191,2]
[381604680,1756295452628,-693.83,0.00022191,2]
[381604682,1756295452637,-480.0,0.00022191,2]
[381604685,1756295452647,-480.0,0.00022191,2]
[381604687,1756295452658,-1174.5,0.00022191,2]
[381604689,1756295452667,-407.99582337,0.00022191,2]
[381604691,1756295452679,-790.73,0.00022191,2]
[381604693,1756295452688,-480.0,0.00022191,2]
[381604695,1756295452697,-480.0,0.00022191,2]
[381604697,1756295452706,-480.0,0.00022191,2]
[381604699,1756295452715,-480.0,0.00022191,2]
[381604701,1756295452724,-480.0,0.00022191,2]
[381604702,1756295452733,-480.0,0.00022191,2]
[381604704,1756295452743,-480.0,0.00022191,2]
[381604706,1756295452752,-480.0,0.00022191,2]
[381604708,1756295452761,-824.65,0.00022191,2]
[381604710,1756295452770,-480.0,0.00022191,2]
[381604712,1756295452780,-480.0,0.00022191,2]
[381604714,1756295452789,-480.0,0.00022191,2]
[381604716,1756295452798,-480.0,0.00022191,2]
[381604718,1756295452807,-897.27,0.00022191,2]
[381604720,1756295452817,-480.0,0.00022191,2]
[381604722,1756295452826,-771.07,0.00022191,2]
[381604724,1756295452839,-480.0,0.00022191,2]
[381604726,1756295452848,-480.0,0.00022191,2]
[381604728,1756295452857,-480.0,0.00022191,2]
[381604730,1756295452866,-480.0,0.00022191,2]
[381604732,1756295452875,-480.0,0.00022191,2]
[381604734,1756295452886,-504.69,0.00022191,2]
[381604736,1756295452896,-1094.25,0.00022191,2]
[381604738,1756295452905,-480.0,0.00022191,2]
[381604740,1756295452917,-480.0,0.00022191,2]
[381604743,1756295452927,-480.0,0.00022191,2]
[381604745,1756295452935,-151.0,0.00022191,7]
[381604747,1756295452945,-480.0,0.00022191,2]
[381604749,1756295452955,-480.0,0.00022191,2]
[381604751,1756295452964,-480.0,0.00022191,2]
[381604753,1756295452974,-1176.51,0.00022191,2]
[381604754,1756295452984,-833.03,0.00022191,2]
[381604756,1756295452993,-480.0,0.00022191,2]
[381604758,1756295453004,-483.29,0.00022191,2]
[381604760,1756295453014,-480.0,0.00022191,2]
[381604762,1756295453023,-480.0,0.00022191,2]
[381604765,1756295453033,-650.46,0.00022191,2]
[381604766,1756295453042,-536.02,0.00022191,2]
[381604768,1756295453051,-2316.32,0.00022191,2]
[381604770,1756295453060,-480.0,0.00022191,2]
[381604772,1756295453069,-480.0,0.00022191,2]
[381604774,1756295453078,-480.0,0.00022191,2]
[381604776,1756295453087,-480.0,0.00022191,2]
[381604778,1756295453097,-633.07,0.00022191,2]
[381604780,1756295453106,-482.09601777,0.00022191,2]
[381604782,1756295453116,-480.0,0.00022191,2]
[381604784,1756295453125,-480.0,0.00022191,2]
[381604786,1756295453135,-151.0,0.00022191,7]
[381604789,1756295453144,-480.0,0.00022191,2]
[381604791,1756295453155,-480.0,0.00022191,2]
[381604793,1756295453164,-480.0,0.00022191,2]
[381604795,1756295453174,-617.59,0.00022191,2]
[381604797,1756295453183,-480.0,0.00022191,2]
[381604799,1756295453193,-480.0,0.00022191,2]
[381604801,1756295453202,-692.43,0.00022191,2]
[381604803,1756295453211,-480.0,0.00022191,2]
[381604805,1756295453221,-518.17,0.00022191,2]
[381604807,1756295453230,-199.39766,0.00022191,7]
[381604809,1756295453239,-199.39766,0.00022191,7]
[381604812,1756295453257,-480.0,0.00022191,2]
[381604814,1756295453269,-604.0,0.00022191,2]
[381604816,1756295453278,-199.39766,0.00022191,7]
[381604818,1756295453289,-199.39766,0.00022191,7]
[381604820,1756295453298,-500.09,0.00022191,2]
[381604822,1756295453307,-480.0,0.00022191,2]
[381604824,1756295453318,-480.0,0.00022191,2]
[381604826,1756295453327,-480.0,0.00022191,2]
[381604828,1756295453337,-406.56828351,0.00022191,2]
[381604830,1756295453347,-480.0,0.00022191,2]
[381604832,1756295453356,-480.0,0.00022191,2]
[381604834,1756295453366,-341.22691864,0.00022191,2]
[381604836,1756295453376,-480.0,0.00022191,2]
[381604838,1756295453386,-151.0,0.00022191,7]
[381604841,1756295453396,-151.0,0.00022191,7]
[381604843,1756295453406,-480.0,0.00022191,2]
[381604845,1756295453415,-480.0,0.00022191,2]
[381604847,1756295453424,-603.45,0.00022191,2]
[381604849,1756295453433,-480.0,0.00022191,2]
[381604851,1756295453444,-480.0,0.00022191,2]
[381604853,1756295453454,-480.0,0.00022191,2]
[381604855,1756295453464,-480.0,0.00022191,2]
[381604857,1756295453473,-151.0,0.00022191,7]
[381604859,1756295453483,-480.0,0.00022191,2]
[381604861,1756295453492,-480.0,0.00022191,2]
[381604863,1756295453501,-480.0,0.00022191,2]
[381604865,1756295453511,-525.14,0.00022191,2]
[381604867,1756295453520,-480.0,0.00022191,2]
[381604869,1756295453530,-480.0,0.00022191,2]
[381604871,1756295453540,-480.0,0.00022191,2]
[381604873,1756295453549,-480.0,0.00022191,2]
[381604875,1756295453559,-546.45,0.00022191,2]
[381604877,1756295453568,-482.32975304,0.00022191,2]
[381604879,1756295453578,-480.0,0.00022191,2]
[381604881,1756295453588,-480.0,0.00022191,2]
[381604883,1756295453597,-495.46,0.00022191,2]
[381604885,1756295453607,-400.0,0.00022191,2]
[381604887,1756295453617,-494.23,0.00022191,2]
[381604889,1756295453626,-480.0,0.00022191,2]
[381604891,1756295453635,-480.0,0.00022191,2]
[381604893,1756295453645,-480.0,0.00022191,2]
[381604895,1756295453655,-480.0,0.00022191,2]
[381604897,1756295453664,-752.07,0.00022191,2]
[381604899,1756295453673,-522.4,0.00022191,2]
[381604901,1756295453686,-480.0,0.00022191,2]
[381604903,1756295453696,-480.0,0.00022191,2]
[381604905,1756295453705,-1143.26,0.00022191,2]
[381604907,1756295453715,-480.0,0.00022191,2]
[381604909,1756295453726,-698.99,0.00022191,2]
[381604911,1756295453735,-606.55,0.00022191,2]
[381604913,1756295453745,-480.0,0.00022191,2]
[381604915,1756295453755,-755.57,0.00022191,2]
[381604917,1756295453765,-740.17,0.00022191,2]
[381604919,1756295453775,-480.0,0.00022191,2]
[381604921,1756295453784,-480.0,0.00022191,2]
[381604923,1756295453794,-839.06,0.00022191,2]
[381604925,1756295453803,-480.0,0.00022191,2]
[381604927,1756295453812,-558.04,0.00022191,2]
[381604929,1756295453822,-480.0,0.00022191,2]
[381604931,1756295453833,-480.0,0.00022191,2]
[381604933,1756295453845,-480.0,0.00022191,2]
[381604935,1756295453854,-480.0,0.00022191,2]
[381604936,1756295453863,-480.0,0.00022191,2]
[381604937,1756295453873,-480.0,0.00022191,2]
[381604938,1756295453882,-480.0,0.00022191,2]
[381604939,1756295453892,-480.0,0.00022191,2]
[381604940,1756295453901,-151.0,0.00022191,7]
[381604941,1756295453910,-151.0,0.00022191,7]
[381604942,1756295453920,-576.43,0.00022191,2]
[381604943,1756295453931,-151.0,0.00022191,7]
[381604944,1756295453941,-480.0,0.00022191,2]
[381604945,1756295453951,-480.0,0.00022191,2]
[381604946,1756295453960,-527.26,0.00022191,2]
[381604947,1756295453970,-564.31,0.00022191,2]
[381604948,1756295453980,-525.48,0.00022191,2]
[381604949,1756295453990,-480.0,0.00022191,2]
[381604950,1756295454000,-480.0,0.00022191,2]
[381604952,1756295454011,-151.0,0.00022191,7]
[381604954,1756295454020,-151.0,0.00022191,7]
[381604956,1756295454030,-480.0,0.00022191,2]
[381604958,1756295454040,-480.0,0.00022191,2]
[381604960,1756295454050,-706.22,0.00022191,2]
[381604962,1756295454061,-480.0,0.00022191,2]
[381604964,1756295454071,-480.0,0.00022191,2]
[381604966,1756295454080,-550.82,0.00022191,2]
[381604968,1756295454091,-926.56,0.00022191,2]
[381604971,1756295454101,-924.56,0.00022191,2]
[381604973,1756295454111,-480.0,0.00022191,2]
[381604975,1756295454121,-480.0,0.00022191,2]
[381604977,1756295454132,-625.16,0.00022191,2]
[381604979,1756295454142,-480.0,0.00022191,2]
[381604981,1756295454152,-480.0,0.00022191,2]
[381604983,1756295454162,-480.0,0.00022191,2]
[381604985,1756295454172,-480.0,0.00022191,2]
[381604987,1756295454182,-480.0,0.00022191,2]
[381604989,1756295454192,-480.0,0.00022191,2]
[381604991,1756295454203,-613.93,0.00022191,2]
[381604993,1756295454212,-480.0,0.00022191,2]
[381604995,1756295454223,-480.0,0.00022191,2]
[381604997,1756295454237,-480.0,0.00022191,2]
[381604999,1756295454247,-480.0,0.00022191,2]
[381605001,1756295454258,-480.0,0.00022191,2]
[381605003,1756295454268,-480.0,0.00022191,2]
[381605005,1756295454278,-480.0,0.00022191,2]
[381605007,1756295454288,-480.0,0.00022191,2]
[381605009,1756295454298,-480.0,0.00022191,2]
[381605011,1756295454307,-732.55,0.00022191,2]
[381605013,1756295454317,-480.0,0.00022191,2]
[381605015,1756295454328,-480.0,0.00022191,2]
[381605017,1756295454338,-480.0,0.00022191,2]
[381605019,1756295454348,-480.0,0.00022191,2]
[381605021,1756295454359,-480.0,0.00022191,2]
[381605023,1756295454368,-480.0,0.00022191,2]
[381605025,1756295454379,-480.0,0.00022191,2]
[381605028,1756295454392,-480.0,0.00022191,2]
[381605030,1756295454414,-500.0,0.00022191,2]
[381605032,1756295454425,-502.03,0.00022191,2]